fUST/lending_fUST_20250402
["ID","MTS","AMOUNT","RATE_DAILY","PERIOD"]
[357009569,1743575438690,-500.0,0.00018783,2]
[357009570,1743575438700,-500.0,0.00018783,2]
[357009571,1743575438710,-500.0,0.00018783,2]
[357009572,1743575438720,-505.12,0.00018783,2]
[357009573,1743575438730,-500.0,0.00018783,2]
[357009574,1743575438740,-397.26399938,0.00018783,2]
[357009575,1743575438750,-500.0,0.00018783,2]
[357009576,1743575438759,-560.35,0.00018783,2]
[357009577,1743575438769,-500.0,0.00018783,2]
[357009578,1743575438779,-500.0,0.00018783,2]
[357009579,1743575438788,-500.0,0.00018783,2]
[357009580,1743575438798,-500.0,0.00018783,2]
[357009581,1743575438807,-500.0,0.00018783,2]
[357009582,1743575438817,-500.0,0.00018783,2]
[357009583,1743575438827,-500.0,0.00018783,2]
[357009584,1743575438836,-500.0,0.00018783,2]
[357009585,1743575438846,-500.0,0.00018783,2]
[357009586,1743575438855,-500.0,0.00018783,2]
[357009587,1743575438864,-500.0,0.00018783,2]
[357009588,1743575438874,-500.0,0.00018783,2]
[357009589,1743575438883,-360.51069576,0.00018783,2]
[357009590,1743575438893,-500.0,0.00018783,2]
[357009591,1743575438902,-500.0,0.00018783,2]
[357009592,1743575438911,-500.0,0.00018783,2]
[357009593,1743575438924,-500.0,0.00018783,2]
[357009594,1743575438933,-500.0,0.00018783,2]
[357009595,1743575438943,-500.0,0.00018783,2]
[357009596,1743575438952,-500.0,0.00018783,2]
[357009597,1743575438961,-313.28256747,0.00018783,2]
[357009598,1743575438970,-500.0,0.00018783,2]
[357009599,1743575438979,-500.0,0.00018783,2]
[357009600,1743575438989,-500.0,0.00018783,2]
[357009601,1743575438998,-500.0,0.00018783,2]
[357009602,1743575439007,-500.0,0.00018783,2]
[357009603,1743575439017,-500.0,0.00018783,2]
[357009604,1743575439027,-500.0,0.00018783,2]
[357009605,1743575439036,-500.0,0.00018783,2]
[357009606,1743575439045,-550.67876014,0.00018783,2]
[357009607,1743575439055,-500.0,0.00018783,2]
[357009608,1743575439064,-500.0,0.00018783,2]
[357009609,1743575439073,-500.0,0.00018783,2]
[357009610,1743575439082,-500.0,0.00018783,2]
[357009611,1743575439091,-500.85584008,0.00018783,2]
[357009612,1743575439101,-500.0,0.00018783,2]
[357009613,1743575439110,-501.76761774,0.00018783,2]
[357009614,1743575439120,-500.0,0.00018783,2]
[357009615,1743575439130,-500.0,0.00018783,2]
[357009616,1743575439139,-500.0,0.00018783,2]
[357009617,1743575439150,-500.0,0.00018783,2]
[357009618,1743575439159,-511.71,0.00018783,2]
[357009619,1743575439168,-500.0,0.00018783,2]
[357009620,1743575439178,-500.0,0.00018783,2]
[357009621,1743575439188,-500.0,0.00018783,2]
[357009622,1743575439197,-500.0,0.00018783,2]
[357009623,1743575439206,-500.0,0.00018783,2]
[357009624,1743575439216,-500.0,0.00018783,2]
[357009625,1743575439225,-500.0,0.00018783,2]
[357009626,1743575439235,-368.09595321,0.00018783,2]
[357009627,1743575439245,-500.0,0.00018783,2]
[357009628,1743575439255,-500.0,0.00018783,2]
[357009629,1743575439264,-500.0,0.00018783,2]
[357009630,1743575439274,-527.06782919,0.00018783,2]
[357009631,1743575439283,-500.0,0.00018783,2]
[357009632,1743575439293,-500.0,0.00018783,2]
[357009633,1743575439302,-500.0,0.00018783,2]
[357009634,1743575439311,-500.0,0.00018783,2]
[357009635,1743575439321,-628.02,0.00018783,2]
[357009636,1743575439330,-500.0,0.00018783,2]
[357009637,1743575439340,-500.0,0.00018783,2]
[357009638,1743575439349,-500.0,0.00018783,2]
[357009639,1743575439359,-500.0,0.00018783,2]
[357009640,1743575439371,-500.0,0.00018783,2]
[357009641,1743575439384,-638.80952501,0.00018783,2]
[357009642,1743575439394,-573.17,0.00018783,2]
[357009643,1743575439404,-346.3571085,0.00018783,2]
[357009644,1743575439575,-500.0,0.00018783,2]
[357009645,1743575439585,-500.0,0.00018783,2]
[357009646,1743575439595,-500.0,0.00018783,2]
[357009647,1743575439606,-500.0,0.00018783,2]
[357009648,1743575439615,-567.19,0.00018783,2]
[357009649,1743575439624,-567.07501858,0.00018783,2]
[357009650,1743575439634,-500.0,0.00018783,2]
[357009653,1743575439645,-358.31095401,0.00018783,2]
[357009654,1743575439655,-500.0,0.00018783,2]
[357009655,1743575439665,-500.0,0.00018783,2]
[357009656,1743575439675,-500.0,0.00018783,2]
[357009657,1743575439684,-583.97,0.00018783,2]
[357009658,1743575439694,-500.0,0.00018783,2]
[357009659,1743575439704,-500.0,0.00018783,2]
[357009660,1743575439713,-500.0,0.00018783,2]
[357009661,1743575439723,-500.0,0.00018783,2]
[357009662,1743575439733,-477.61338275,0.00018783,2]
[357009663,1743575439743,-500.0,0.00018783,2]
[357009664,1743575439752,-509.96864212,0.00018783,2]
[357009665,1743575439762,-500.0,0.00018783,2]
[357009666,1743575439771,-500.0,0.00018783,2]
[357009667,1743575439780,-500.0,0.00018783,2]
[357009668,1743575439790,-500.0,0.00018783,2]
[357009669,1743575439799,-500.0,0.00018783,2]
[357009670,1743575439809,-500.0,0.00018783,2]
[357009671,1743575439819,-500.0,0.00018783,2]
[357009672,1743575439828,-500.0,0.00018783,2]
[357009674,1743575439838,-500.0,0.00018783,2]
[357009675,1743575439848,-500.0,0.00018783,2]
[357009676,1743575439858,-500.0,0.00018783,2]
[357009677,1743575439868,-1000.0,0.00018783,2]
[357009678,1743575439878,-500.0,0.00018783,2]
[357009679,1743575439888,-504.14458026,0.00018783,2]
[357009681,1743575439899,-500.0,0.00018783,2]
[357009682,1743575439908,-500.0,0.00018783,2]
[357009683,1743575439918,-500.0,0.00018783,2]
[357009684,1743575439927,-500.0,0.00018783,2]
[357009685,1743575439937,-500.0,0.00018783,2]
[357009686,1743575439947,-500.0,0.00018783,2]
[357009687,1743575439956,-500.0,0.00018783,2]
[357009688,1743575439966,-500.0,0.00018783,2]
[357009689,1743575439976,-500.0,0.00018783,2]
[357009690,1743575439985,-508.06537924,0.00018783,2]
[357009691,1743575439994,-500.0,0.00018783,2]
[357009692,1743575440003,-529.03309517,0.00018783,2]
[357009693,1743575440013,-500.0,0.00018783,2]
[357009694,1743575440022,-246.74809287,0.00018783,2]
[357009695,1743575440036,-253.25190713,0.00018783,2]
[357009696,1743575440045,-500.55776719,0.00018783,2]
[357009697,1743575440055,-500.0,0.00018783,2]
[357009698,1743575440064,-500.0,0.00018783,2]
[357009699,1743575440073,-260.15731575,0.00018783,2]
[357009700,1743575440082,-501.09746196,0.00018783,2]
[357009701,1743575440092,-500.0,0.00018783,2]
[357009702,1743575440102,-500.80028926,0.00018783,2]
[357009703,1743575440111,-500.0,0.00018783,2]
[357009704,1743575440121,-500.0,0.00018783,2]
[357009705,1743575440130,-500.0,0.00018783,2]
[357009706,1743575440139,-383.09083666,0.00018783,2]
[357009707,1743575440149,-500.0,0.00018783,2]
[357009708,1743575440158,-500.0,0.00018783,2]
[357009709,1743575440167,-500.0,0.00018783,2]
[357009710,1743575440176,-500.0,0.00018783,2]
[357009711,1743575440186,-500.0,0.00018783,2]
[357009712,1743575440195,-500.0,0.00018783,2]
[357009713,1743575440205,-500.0,0.00018783,2]
[357009714,1743575440215,-575.32157473,0.00018783,2]
[357009715,1743575440224,-500.0,0.00018783,2]
[357009716,1743575440234,-560.46,0.00018783,2]
[357009718,1743575440243,-500.0,0.00018783,2]
[357009720,1743575440253,-557.43,0.00018783,2]
[357009721,1743575440262,-179.64,0.00018783,2]
[357009722,1743575440271,-500.0,0.00018783,2]
[357009723,1743575440280,-500.0,0.00018783,2]
[357009724,1743575440292,-537.03828472,0.00018783,2]
[357009725,1743575440301,-1848.83,0.00018784,2]
[357009726,1743575440311,-7606.40020885,0.000189,2]
[357009727,1743575440320,-1038.71,0.00019052,2]
[357009728,1743575440330,-557.09,0.00019052,2]
[357009729,1743575440340,-500.0,0.00019052,2]
[357009730,1743575440349,-804.82,0.00019052,2]
[357009731,1743575440358,-6493.01,0.00019054,2]
[357009732,1743575440368,-500.0,0.00019054,2]
[357009733,1743575440381,-2638.08,0.00019054,2]
[357009734,1743575440391,-500.0,0.00019054,2]
[357009735,1743575440401,-591.4,0.00019054,2]
[357009736,1743575440411,-500.0,0.00019055,2]
[357009737,1743575440422,-511.4,0.00019055,2]
[357009738,1743575440432,-250.39,0.00019055,2]
[357009739,1743575440442,-682.68,0.00019055,2]
[357009740,1743575440452,-1262.6,0.00019055,2]
[357009741,1743575440463,-500.0,0.00019055,2]
[357009742,1743575440474,-500.0,0.00019055,2]
[357009743,1743575440484,-193.01,0.00019055,2]
[357009744,1743575440494,-500.0,0.00019055,2]
[357009746,1743575440503,-542.77,0.00019055,2]
[357009748,1743575440513,-1446.68,0.00019055,2]
[357009749,1743575440522,-572.79,0.00019055,2]
[357009750,1743575440531,-500.0,0.00019055,2]
[357009751,1743575440541,-500.0,0.00019055,2]
[357009752,1743575440551,-697.36,0.00019055,2]
[357009753,1743575440561,-500.0,0.00019055,2]
[357009754,1743575440570,-2090.32,0.00019055,2]
[357009755,1743575440580,-500.0,0.00019056,2]
[357009756,1743575440590,-500.0,0.00019056,2]
[357009757,1743575440600,-500.0,0.00019056,2]
[357009758,1743575440609,-500.0,0.00019056,2]
[357009759,1743575440618,-1770.26,0.00019056,2]
[357009760,1743575440627,-500.0,0.00019056,2]
[357009761,1743575440637,-321.92,0.00019056,2]
[357009762,1743575440648,-500.0,0.00019056,2]
[357009763,1743575440658,-500.15,0.00019056,2]
[357009764,1743575440667,-500.0,0.00019056,2]
[357009765,1743575440677,-500.0,0.00019056,2]
[357009766,1743575440687,-513.05,0.00019056,2]
[357009767,1743575440696,-223.9471205,0.00019056,2]
[357009768,1743575440706,-500.0,0.00019057,2]
[357009769,1743575440715,-583.97,0.00019057,2]
[357009770,1743575440725,-500.0,0.00019057,2]
[357009771,1743575440734,-500.0,0.00019057,2]
[357009772,1743575440744,-500.0,0.00019057,2]
[357009773,1743575440753,-500.0,0.00019057,2]
[357009774,1743575440763,-500.0,0.00019057,2]
[357009775,1743575440772,-500.0,0.00019057,2]
[357009776,1743575440782,-500.0,0.00019057,2]
[357009777,1743575440792,-500.0,0.00019057,2]
[357009778,1743575440801,-500.0,0.00019057,2]
[357009779,1743575440810,-500.0,0.00019057,2]
[357009780,1743575440820,-1848.83,0.00019058,2]
[357009781,1743575440830,-500.0,0.00019293,2]
[357009782,1743575440839,-500.0,0.00019293,2]
[357009783,1743575440848,-500.0,0.00019293,2]
[357009784,1743575440858,-500.0,0.00019293,2]
[357009785,1743575440867,-500.0,0.00019305,2]
[357009786,1743575440876,-500.0,0.00019305,2]
[357009787,1743575440886,-500.0,0.00019305,2]
[357009788,1743575440896,-393.06569726,0.00019321,2]
[357009789,1743575440905,-1038.71,0.00019326,2]
[357009790,1743575440915,-557.09,0.00019326,2]
[357009791,1743575440925,-500.0,0.00019326,2]
[357009792,1743575440934,-804.82,0.00019326,2]
[357009793,1743575440944,-6493.01,0.00019328,2]
[357009794,1743575440953,-500.0,0.00019328,2]
[357009795,1743575440962,-2638.08,0.00019328,2]
[357009796,1743575440971,-500.0,0.00019328,2]
[357009797,1743575440981,-591.4,0.00019328,2]
[357009798,1743575440990,-480.91,0.00019329,2]
[357009799,1743575441000,-682.68,0.00019329,2]
[357009800,1743575441009,-1262.6,0.00019329,2]
[357009801,1743575441019,-500.0,0.00019329,2]
[357009802,1743575441028,-500.0,0.00019329,2]
[357009803,1743575441037,-500.0,0.00019329,2]
[357009804,1743575441046,-1446.68,0.00019329,2]
[357009805,1743575441056,-500.0,0.00019329,2]
[357009806,1743575441065,-500.0,0.00019329,2]
[357009807,1743575441075,-697.36,0.00019329,2]
[357009808,1743575441084,-500.0,0.00019329,2]
[357009809,1743575441093,-2090.32,0.00019329,2]
[357009810,1743575441103,-500.0,0.0001933,2]
[357009811,1743575441113,-500.0,0.0001933,2]
[357009812,1743575441131,-500.0,0.0001933,2]
[357009813,1743575441142,-500.0,0.0001933,2]
[357009814,1743575441152,-1770.26,0.0001933,2]
[357009815,1743575441162,-500.0,0.0001933,2]
[357009816,1743575441171,-500.0,0.0001933,2]
[357009817,1743575441181,-543.02,0.0001933,2]
[357009818,1743575441191,-500.0,0.0001933,2]
[357009819,1743575441202,-513.05,0.0001933,2]
[357009820,1743575441211,-583.97,0.00019331,2]
[357009821,1743575441221,-500.0,0.00019331,2]
[357009822,1743575441231,-471.64,0.00019331,2]
[357009823,1743575441241,-371.93,0.00019331,2]
[357009824,1743575441251,-437.27,0.00019331,2]
[357009825,1743575441260,-507.27885343,0.00019331,2]
[357009826,1743575441270,-1848.83,0.00019332,2]
[357009827,1743575441280,-253.82190722,0.00019351,2]
[357009828,1743575441290,-500.0,0.00019366,2]
[357009829,1743575441300,-7606.40020873,0.00019452,2]
[357009830,1743575441309,-1038.71,0.000196,2]
[357009831,1743575441319,-557.09,0.000196,2]
[357009832,1743575441328,-500.0,0.000196,2]
[357009833,1743575441338,-804.82,0.000196,2]
[357009834,1743575441348,-6493.01,0.00019602,2]
[357009835,1743575441357,-500.0,0.00019602,2]
[357009836,1743575441367,-2638.08,0.00019602,2]
[357009837,1743575441379,-500.0,0.00019602,2]
[357009838,1743575441390,-591.4,0.00019602,2]
[357009839,1743575441400,-682.68,0.00019603,2]
[357009840,1743575441410,-1262.6,0.00019603,2]
[357009841,1743575441420,-500.0,0.00019603,2]
[357009842,1743575441431,-500.0,0.00019603,2]
[357009843,1743575441440,-500.0,0.00019603,2]
[357009844,1743575441450,-1446.68,0.00019603,2]
[357009845,1743575441461,-500.0,0.00019603,2]
[357009846,1743575441471,-500.0,0.00019603,2]
[357009847,1743575441480,-697.36,0.00019603,2]
[357009848,1743575441490,-500.0,0.00019603,2]
[357009849,1743575441500,-2090.32,0.00019603,2]
[357009850,1743575441510,-337.21,0.00019604,2]
[357009851,1743575441520,-500.0,0.00019604,2]
[357009852,1743575441529,-500.0,0.00019604,2]
[357009853,1743575441539,-613.14,0.00019604,2]
[357009854,1743575441549,-1770.26,0.00019604,2]
[357009855,1743575441559,-299.66,0.00019604,2]
[357009856,1743575441569,-478.27,0.00019604,2]
[357009857,1743575441579,-500.0,0.00019604,2]
[357009858,1743575441588,-513.05,0.00019604,2]
[357009859,1743575441598,-583.97,0.00019605,2]
[357009860,1743575441608,-1848.83,0.00019606,2]
[357009861,1743575441618,-500.0,0.00019712,2]
[357009862,1743575441628,-500.0,0.00019727,2]
[357009863,1743575441638,-500.0,0.00019727,2]
[357009864,1743575441648,-501.42864348,0.00019785,2]
[357009865,1743575441658,-325.6845662,0.00019785,2]
[357009866,1743575441667,-632.55040345,0.00019785,2]
[357009867,1743575441678,-526.15630649,0.00019785,2]
[357009868,1743575441688,-500.0,0.00019785,2]
[357009869,1743575441698,-461.57207754,0.00019785,2]
[357009870,1743575441708,-500.0,0.00019785,2]
[357009871,1743575441718,-290.16459568,0.00019785,2]
[357009872,1743575441728,-500.0,0.00019785,2]
[357009873,1743575441737,-500.0,0.00019785,2]
[357009874,1743575441747,-500.0,0.00019785,2]
[357009875,1743575441757,-500.0,0.00019785,2]
[357009876,1743575441767,-500.0,0.00019785,2]
[357009877,1743575441777,-500.0,0.00019785,2]
[357009878,1743575441788,-500.0,0.00019785,2]
[357009879,1743575441797,-500.0,0.00019785,2]
[357009880,1743575441807,-1038.71,0.00019874,2]
[357009881,1743575441817,-557.09,0.00019874,2]
[357009882,1743575441827,-500.0,0.00019874,2]
[357009883,1743575441836,-804.82,0.00019874,2]
[357009884,1743575441846,-6493.01,0.00019876,2]
[357009885,1743575441856,-500.0,0.00019876,2]
[357009886,1743575441866,-2638.08,0.00019876,2]
[357009887,1743575441876,-500.0,0.00019876,2]
[357009888,1743575441886,-591.4,0.00019876,2]
[357009889,1743575441896,-682.68,0.00019877,2]
[357009890,1743575441905,-1262.6,0.00019877,2]
[357009891,1743575441915,-500.0,0.00019877,2]
[357009892,1743575441924,-500.0,0.00019877,2]
[357009893,1743575441933,-500.0,0.00019877,2]
[357009894,1743575441942,-1446.68,0.00019877,2]
[357009895,1743575441951,-500.0,0.00019877,2]
[357009896,1743575441961,-500.0,0.00019877,2]
[357009897,1743575441970,-697.36,0.00019877,2]
[357009898,1743575441980,-500.0,0.00019877,2]
[357009899,1743575441989,-2090.32,0.00019877,2]
[357009900,1743575442000,-566.67,0.00019878,2]
[357009901,1743575442010,-500.0,0.00019878,2]
[357009902,1743575442019,-1770.26,0.00019878,2]
[357009903,1743575442029,-500.0,0.00019878,2]
[357009904,1743575442039,-513.05,0.00019878,2]
[357009905,1743575442049,-1848.83,0.00019879,2]
[357009906,1743575442058,-583.97,0.00019879,2]
[357009907,1743575442067,-5882.34227126,0.00020003,2]
[357009908,1743575442083,-1724.05793747,0.00020003,2]
[357009909,1743575442092,-1038.71,0.00020148,2]
[357009910,1743575442102,-557.09,0.00020148,2]
[357009911,1743575442112,-320.9371398,0.00020148,2]
[357009912,1743575442124,-179.0628602,0.00020148,2]
[357009913,1743575442133,-804.82,0.00020148,2]
[357009914,1743575442143,-6493.01,0.0002015,2]
[357009915,1743575442152,-500.0,0.0002015,2]
[357009916,1743575442162,-2638.08,0.0002015,2]
[357009917,1743575442171,-500.0,0.0002015,2]
[357009918,1743575442181,-591.4,0.0002015,2]
[357009919,1743575442191,-682.68,0.00020151,2]
[357009920,1743575442200,-1262.6,0.00020151,2]
[357009921,1743575442210,-500.0,0.00020151,2]
[357009922,1743575442220,-500.0,0.00020151,2]
[357009923,1743575442229,-636.93,0.00020151,2]
[357009924,1743575442239,-1446.68,0.00020151,2]
[357009925,1743575442248,-500.0,0.00020151,2]
[357009926,1743575442257,-500.0,0.00020151,2]
[357009927,1743575442267,-697.36,0.00020151,2]
[357009928,1743575442276,-500.0,0.00020151,2]
[357009929,1743575442286,-2090.32,0.00020151,2]
[357009930,1743575442295,-430.13,0.00020152,2]
[357009931,1743575442304,-1040.63186431,0.00020152,2]
[357009932,1743575442316,-729.62813569,0.00020152,2]
[357009933,1743575442326,-372.64312706,0.00020152,2]
[357009934,1743575442365,-127.35687294,0.00020152,2]
[357009935,1743575442374,-513.05,0.00020152,2]
[357009936,1743575442388,-1848.83,0.00020153,2]
[357009937,1743575442398,-583.97,0.00020153,2]
[357009940,1743575442537,-516.8982811,0.00020181,2]
[357009942,1743575442549,-12458.93820146,0.00020249,2]
[357009944,1743575442559,-419.02799708,0.0002025,2]
[357009946,1743575442569,-1038.71,0.00020422,2]
[357009947,1743575442579,-557.09,0.00020422,2]
[357009949,1743575442590,-500.0,0.00020422,2]
[357009950,1743575442599,-804.82,0.00020422,2]
[357009951,1743575442609,-6493.01,0.00020424,2]
[357009952,1743575442618,-500.0,0.00020424,2]
[357009953,1743575442627,-2638.08,0.00020424,2]
[357009954,1743575442637,-500.0,0.00020424,2]
[357009955,1743575442647,-591.4,0.00020424,2]
[357009956,1743575442657,-682.68,0.00020425,2]
[357009957,1743575442666,-1262.6,0.00020425,2]
[357009958,1743575442676,-500.0,0.00020425,2]
[357009959,1743575442685,-500.0,0.00020425,2]
[357009960,1743575442695,-1446.68,0.00020425,2]
[357009961,1743575442704,-500.0,0.00020425,2]
[357009962,1743575442713,-438.36158474,0.00020425,2]
[357009963,1743575442723,-697.36,0.00020425,2]
[357009964,1743575442733,-500.0,0.00020425,2]
[357009965,1743575442742,-2090.32,0.00020425,2]
[357009966,1743575442752,-1770.26,0.00020426,2]
[357009967,1743575442762,-500.0,0.00020426,2]
[357009968,1743575442772,-513.05,0.00020426,2]
[357009969,1743575442781,-1848.83,0.00020427,2]
[357009970,1743575442791,-583.97,0.00020427,2]
[357009971,1743575442801,-420.0,0.00020465,2]
[357009972,1743575442810,-7606.40020873,0.00020555,2]
[357009973,1743575442820,-1038.71,0.00020696,2]
[357009974,1743575442830,-557.09,0.00020696,2]
[357009975,1743575442840,-500.0,0.00020696,2]
[357009976,1743575442850,-804.82,0.00020696,2]
[357009977,1743575442859,-6493.01,0.00020698,2]
[357009978,1743575442868,-500.0,0.00020698,2]
[357009979,1743575442877,-2638.08,0.00020698,2]
[357009980,1743575442887,-500.0,0.00020698,2]
[357009981,1743575442899,-591.4,0.00020698,2]
[357009982,1743575442908,-682.68,0.00020699,2]
[357009983,1743575442918,-1262.6,0.00020699,2]
[357009984,1743575442928,-500.0,0.00020699,2]
[357009985,1743575442937,-500.0,0.00020699,2]
[357009986,1743575442947,-1446.68,0.00020699,2]
[357009987,1743575442957,-500.0,0.00020699,2]
[357009988,1743575442967,-697.36,0.00020699,2]
[357009989,1743575442977,-500.0,0.00020699,2]
[357009990,1743575442987,-2090.32,0.00020699,2]
[357009991,1743575442996,-1770.26,0.000207,2]
[357009992,1743575443007,-500.0,0.000207,2]
[357009993,1743575443017,-513.05,0.000207,2]
[357009994,1743575443026,-1848.83,0.00020701,2]
[357009995,1743575443036,-583.97,0.00020701,2]
[357009996,1743575443046,-1038.71,0.0002097,2]
[357009997,1743575443055,-557.09,0.0002097,2]
[357009998,1743575443065,-500.0,0.0002097,2]
[357009999,1743575443075,-804.82,0.0002097,2]
[357010000,1743575443084,-6493.01,0.00020972,2]
[357010001,1743575443093,-500.0,0.00020972,2]
[357010002,1743575443103,-2638.08,0.00020972,2]
[357010003,1743575443112,-500.0,0.00020972,2]
[357010004,1743575443123,-591.4,0.00020972,2]
[357010005,1743575443132,-682.68,0.00020973,2]
[357010006,1743575443142,-1262.6,0.00020973,2]
[357010007,1743575443151,-500.0,0.00020973,2]
[357010008,1743575443161,-500.0,0.00020973,2]
[357010009,1743575443170,-1446.68,0.00020973,2]
[357010010,1743575443179,-500.0,0.00020973,2]
[357010011,1743575443188,-697.36,0.00020973,2]
[357010012,1743575443198,-500.0,0.00020973,2]
[357010013,1743575443207,-2090.32,0.00020973,2]
[357010014,1743575443216,-1770.26,0.00020974,2]
[357010015,1743575443226,-629.13421189,0.00020974,2]
[357010016,1743575443235,-513.05,0.00020974,2]
[357010017,1743575443244,-1848.83,0.00020975,2]
[357010018,1743575443254,-583.97,0.00020975,2]
[357010019,1743575443263,-152.19,0.00021,2]
[357010020,1743575443272,-152.19,0.00021,2]
[357010021,1743575443281,-7606.40020873,0.00021107,3]
[357010022,1743575443291,-1038.71,0.00021244,2]
[357010023,1743575443301,-557.09,0.00021244,2]
[357010024,1743575443311,-219.77956724,0.00021244,2]
[357010025,1743575443320,-804.82,0.00021244,2]
[357010026,1743575443330,-6493.01,0.00021246,2]
[357010027,1743575443339,-500.0,0.00021246,2]
[357010028,1743575443349,-2638.08,0.00021246,2]
[357010029,1743575443358,-500.0,0.00021246,2]
[357010030,1743575443368,-591.4,0.00021246,2]
[357010031,1743575443380,-682.68,0.00021247,2]
[357010032,1743575443390,-1262.6,0.00021247,2]
[357010033,1743575443400,-500.0,0.00021247,2]
[357010034,1743575443410,-500.0,0.00021247,2]
[357010035,1743575443419,-1446.68,0.00021247,2]
[357010036,1743575443430,-500.0,0.00021247,2]
[357010037,1743575443440,-697.36,0.00021247,2]
[357010038,1743575443450,-43.77383976,0.00021247,2]
[357010039,1743575443464,-456.22616024,0.00021247,2]
[357010040,1743575443474,-2090.32,0.00021247,2]
[357010041,1743575443484,-1770.26,0.00021248,2]
[357010042,1743575443494,-513.05,0.00021248,2]
[357010043,1743575443504,-1848.83,0.00021249,2]
[357010044,1743575443513,-583.97,0.00021249,2]
[357010045,1743575443523,-401.0,0.00021329,2]
[357010046,1743575443533,-1038.71,0.00021518,2]
[357010047,1743575443543,-557.09,0.00021518,2]
[357010048,1743575443553,-804.82,0.00021518,2]
[357010049,1743575443562,-6493.01,0.0002152,2]
[357010050,1743575443572,-500.0,0.0002152,2]
[357010051,1743575443582,-2638.08,0.0002152,2]
[357010052,1743575443592,-500.0,0.0002152,2]
[357010053,1743575443601,-591.4,0.0002152,2]
[357010054,1743575443611,-682.68,0.00021521,2]
[357010055,1743575443621,-1262.6,0.00021521,2]
[357010056,1743575443630,-500.0,0.00021521,2]
[357010057,1743575443640,-500.0,0.00021521,2]
[357010058,1743575443649,-1446.68,0.00021521,2]
[357010059,1743575443658,-500.0,0.00021521,2]
[357010060,1743575443668,-697.36,0.00021521,2]
[357010062,1743575443678,-500.0,0.00021521,2]
[357010064,1743575443688,-2090.32,0.00021521,2]
[357010065,1743575443698,-1770.26,0.00021522,2]
[357010066,1743575443707,-513.05,0.00021522,2]
[357010067,1743575443717,-1848.83,0.00021523,2]
[357010068,1743575443726,-583.97,0.00021523,2]
[357010069,1743575443735,-47366.80025111,0.000216,2]
[357010070,1743575443747,-3262.59799749,0.000216,2]
[357010071,1743575443759,-479.93791128,0.000216,2]
[357010072,1743575443773,-274.58248928,0.000216,2]
[357010073,1743575443814,-1930.6749422,0.000216,2]
[357010083,1743575446139,-407.5,0.00018782,2]
[357010087,1743575537540,178.5143578,0.00027397,120]
[357010088,1743575567471,2821.4856422,0.00027185,120]
[357010089,1743575840230,1820.9472941,0.00027185,120]
[357010091,1743575872901,182.777656,0.00013699,2]
[357010097,1743576267944,9000.0,0.00025,30]
[357010098,1743576284866,1036.0,0.00025,30]
[357010159,1743576632443,-492.98234495,0.00017778,2]
[357010177,1743576638315,-1337.98469545,0.00017778,2]
[357010178,1743576638326,-1.49030455,0.00018648,2]
[357010179,1743576638337,-479.04298463,0.00018648,2]